[Event "Istanbul Open 2018"]
[Site "Istanbul"]
[Date "2018.09.08"]
[Round "9"]
[White "Sedef, Elif Tuana"]
[Black "Genc, Nuri Gencay"]
[Result "0-1"]
[ECO "B17"]
[WhiteElo "1452"]
[BlackElo "1690"]
[Annotator "NA"]
[PlyCount "118"]
[EventDate "2018.09.02"]
[EventType "swiss"]
[EventCountry "TUR"]
[SourceTitle "playchess.com"]
[Source "ChessBase"]
[SourceQuality "1"]
[TimeControl "5400+30"]

1. e4 {[%emt 0:00:30]} c6 {[%emt 0:00:30]} 2. d4 {[%emt 0:00:00]} d5 {[%emt 0:00:00]} 3. Nc3 {[%emt 0:00:00]} dxe4 {[%emt 0:00:00]} 4. Nxe4 {[%emt 0:00:00]} Nd7 {[%emt 0:00:00]} 5. c3 {[%emt 0:01:00]} Ngf6 {[%emt 0:00:00]} 6. Bd3 {[%emt 0:01:30]} Nxe4 {[%emt 0:00:30]} 7. Bxe4 {[%emt 0:00:30]} Nf6 {[%emt 0:00:00]} 8. Bd3 {[%emt 0:02:30]} Bg4 {[%emt 0:00:00]} 9. Qb3 {[%emt 0:01:30]} Qb6 {[%emt 0:00:30]} 10. Bc4 {[%emt 0:08:30]} Qxb3 {[%emt 0:00:30]} 11. Bxb3 {[%emt 0:01:30]} e6 {[%emt 0:00:00]} 12. Bf4 {[%emt 0:07:30]} Nd5 {[%emt 0:00:00]} 13. Bg3 {[%emt 0:02:30]} h5 {[%emt 0:01:30]} 14. Bxd5 {[%emt 0:09:30]} cxd5 {[%emt 0:00:00]} 15. h3 {[%emt 0:01:30]} Bf5 {[%emt 0:00:00]} 16. Ke2 {[%emt 0:07:30]} f6 {[%emt 0:00:30]} 17. Nf3 {[%emt 0:10:30]} g5 {[%emt 0:00:30]} 18. Nd2 {[%emt 0:09:30]} h4 {[%emt 0:00:30]} 19. Bh2 {[%emt 0:00:30]} Rc8 {[%emt 0:00:30]} 20. f3 {[%emt 0:10:30]} Kd7 {[%emt 0:00:30]} 21. Nf1 {[%emt 0:05:09]} Be7 {[%emt 0:01:30]} 22. Ne3 {[%emt 0:01:35]} Bg6 {[%emt 0:00:30]} 23. Ng4 {[%emt 0:03:54]} Bf5 {[%emt 0:00:30]} 24. Nf2 {[%emt 0:02:44]} Rc6 {[%emt 0:00:30]} 25. Nd3 {[%emt 0:02:40]} Rhc8 {[%emt 0:00:00]} 26. Nc1 {[%emt 0:05:38]} b5 {[%emt 0:02:00]} 27. a3 {[%emt 0:02:27]} Ra6 {[%emt 0:07:30]} 28. Na2 {[%emt 0:01:40]} Rac6 {[%emt 0:01:30]} 29. Nb4 {[%emt 0:00:49]} Rc4 {[%emt 0:00:30]} 30. Nd3 {[%emt 0:00:39]} a5 {[%emt 0:00:30]} 31. Rhc1 {[%emt 0:00:33]} Bf8 {[%emt 0:18:30]} 32. Bg1 {[%emt 0:00:33]} Ke8 {[%emt 0:03:30]} 33. Nc5 {[%emt 0:00:31]} a4 {[%emt 0:01:30]} 34. Be3 {[%emt 0:00:28]} Kf7 {[%emt 0:01:30]} 35. Nd7 {[%emt 0:00:28]} R4c6 {[%emt 0:00:30]} 36. Nxf8 {[%emt 0:00:26]} Rxf8 {[%emt 0:01:30]} 37. Kd2 {[%emt 0:00:38]} Kg6 {[%emt 0:04:30]} 38. Re1 {[%emt 0:00:25]} e5 {[%emt 0:00:30]} 39. Bf2 {[%emt 0:00:32]} Re6 {[%emt 0:00:30]} 40. Re2 {[%emt 0:00:33]} Rfe8 {[%emt 0:00:30]} 41. Rae1 {[%emt 0:00:27]} e4 {[%emt 0:00:30]} 42. Re3 {[%emt 0:00:30]} exf3 {[%emt 0:03:30]} 43. Rxf3 {[%emt 0:00:30]} Be4 {[%emt 0:00:30]} 44. Rfe3 {[%emt 0:00:08]} f5 {[%emt 0:00:30]} 45. R3e2 {[%emt 0:00:55]} Kf6 {[%emt 0:00:30]} 46. Bg1 {[%emt 0:00:30]} Bxg2 {[%emt 0:01:30]} 47. Rxe6+ {[%emt 0:00:27]} Rxe6 {[%emt 0:00:30]} 48. Rxe6+ {[%emt 0:00:13]} Kxe6 {[%emt 0:00:00]} 49. Ke2 {[%emt 0:00:37]} Bxh3 {[%emt 0:00:00]} 50. Kf2 {[%emt 0:00:42]} Bg4 {[%emt 0:00:30]} 51. Kg2 {[%emt 0:00:27]} Bd1 {[%emt 0:00:00]} 52. Bh2 {[%emt 0:00:35]} f4 {[%emt 0:00:00]} 53. Kf2 {[%emt 0:00:25]} Kf5 {[%emt 0:00:30]} 54. Ke1 {[%emt 0:00:28]} Bh5 {[%emt 0:00:00]} 55. Kd2 {[%emt 0:00:32]} g4 {[%emt 0:00:00]} 56. Bg1 {[%emt 0:00:22]} g3 {[%emt 0:00:30]} 57. Ke1 {[%emt 0:00:19]} h3 {[%emt 0:00:30]} 58. Kf1 {[%emt 0:00:30]} Bf3 {[%emt 0:00:00]} 59. Ke1 {[%emt 0:00:16]} h2 {[%emt 0:00:00]} 0-1